[Event "Early-Titled-Tuesday-Blitz-March-19-2024"]
[Site "Chess.com"]
[Date "2024.03.19"]
[Round "1"]
[White "SamCopeland"]
[Black "BilicVladimir"]
[Result "0-1"]
[WhiteElo "2357"]
[BlackElo "2706"]
[TimeControl "180+1"]
[EndTime "8:07:58 PDT"]
[Termination "BilicVladimir won by resignation"]

1. e4 {[%clk 0:02:58.4]} 1... e6 {[%clk 0:02:59.9]} 2. d4 {[%clk 0:02:56.9]}
2... d5 {[%clk 0:03:00]} 3. e5 {[%clk 0:02:55.3]} 3... c5 {[%clk 0:02:59.5]} 4.
c3 {[%clk 0:02:54.3]} 4... Nc6 {[%clk 0:02:59.6]} 5. Nf3 {[%clk 0:02:54]} 5...
Qb6 {[%clk 0:03:00.1]} 6. Bd3 {[%clk 0:02:51.9]} 6... Bd7 {[%clk 0:02:59.9]} 7.
O-O {[%clk 0:02:50.5]} 7... cxd4 {[%clk 0:02:59.9]} 8. Re1 {[%clk 0:02:49]} 8...
Rc8 {[%clk 0:02:59.5]} 9. Nbd2 {[%clk 0:02:46.7]} 9... dxc3 {[%clk 0:02:59.4]}
10. bxc3 {[%clk 0:02:46.3]} 10... Na5 {[%clk 0:03:00]} 11. Rb1 {[%clk
0:02:35.3]} 11... Qc7 {[%clk 0:02:58]} 12. c4 {[%clk 0:02:01.7]} 12... Nxc4
{[%clk 0:02:55.6]} 13. Bxc4 {[%clk 0:02:01]} 13... dxc4 {[%clk 0:02:55.3]} 14.
Ne4 {[%clk 0:02:00.6]} 14... c3 {[%clk 0:02:47.1]} 15. Nd6+ {[%clk 0:01:23.7]}
15... Bxd6 {[%clk 0:02:44.4]} 16. exd6 {[%clk 0:01:24.6]} 16... c2 {[%clk
0:02:40.4]} 17. dxc7 {[%clk 0:01:22.3]} 17... cxd1=Q {[%clk 0:02:37.2]} 18. Rxd1
{[%clk 0:01:18.4]} 18... Rxc7 {[%clk 0:02:36.1]} 19. Bf4 {[%clk 0:01:06.5]}
19... Rc4 {[%clk 0:02:21.3]} 20. Rxb7 {[%clk 0:01:03.1]} 20... Bc8 {[%clk
0:02:07.6]} 21. Rc7 {[%clk 0:00:37.5]} 21... Rxc7 {[%clk 0:02:06.2]} 22. Bxc7
{[%clk 0:00:37.1]} 22... Bb7 {[%clk 0:01:51]} 23. Rd8+ {[%clk 0:00:35.1]} 23...
Ke7 {[%clk 0:01:49.9]} 24. Ne5 {[%clk 0:00:30.7]} 24... h5 {[%clk 0:01:32.8]}
25. Nc4 {[%clk 0:00:29.3]} 25... Bd5 {[%clk 0:01:25.2]} 26. Nd6 {[%clk
0:00:27.9]} 26... h4 {[%clk 0:01:17]} 27. a4 {[%clk 0:00:25.5]} 27... h3 {[%clk
0:01:14.9]} 28. g3 {[%clk 0:00:24.7]} 28... Bf3 {[%clk 0:01:11]} 29. Kf1 {[%clk
0:00:22.8]} 29... Rh5 {[%clk 0:01:09.1]} 30. Nc8+ {[%clk 0:00:13.6]} 30... Kf6
{[%clk 0:01:08.2]} 31. Rxg8 {[%clk 0:00:13.4]} 31... Rd5 {[%clk 0:00:58.9]} 32.
Rd8 {[%clk 0:00:12.1]} 32... Rc5 {[%clk 0:00:40.3]} 33. Bf4 {[%clk 0:00:10.7]}
33... Rc4 {[%clk 0:00:39.1]} 34. Ke1 {[%clk 0:00:09.8]} 34... Rxa4 {[%clk
0:00:38.6]} 35. Kd2 {[%clk 0:00:08.7]} 35... g5 {[%clk 0:00:32.4]} 36. Be3
{[%clk 0:00:07.8]} 36... Ra1 {[%clk 0:00:31.2]} 37. Nd6 {[%clk 0:00:06.3]} 37...
Rd1+ {[%clk 0:00:28.9]} 38. Kc3 {[%clk 0:00:05.5]} 38... Ke7 {[%clk 0:00:28.3]}
39. Re8+ {[%clk 0:00:04.5]} 39... Kxd6 {[%clk 0:00:27.7]} 40. Rd8+ {[%clk
0:00:04.2]} 40... Ke5 {[%clk 0:00:27]} 41. Rxd1 {[%clk 0:00:05.1]} 41... Bxd1
{[%clk 0:00:26.6]} 42. Bxg5 {[%clk 0:00:06]} 42... Ke4 {[%clk 0:00:26.1]} 43.
Kd2 {[%clk 0:00:05.2]} 43... Ba4 {[%clk 0:00:25.3]} 44. g4 {[%clk 0:00:04.6]}
44... Kf3 {[%clk 0:00:24.9]} 45. Be3 {[%clk 0:00:04.8]} 45... a6 {[%clk
0:00:24.3]} 46. g5 {[%clk 0:00:05.1]} 46... e5 {[%clk 0:00:23.2]} 47. Kc3 {[%clk
0:00:05]} 47... Kg2 {[%clk 0:00:23.1]} 48. f4 {[%clk 0:00:04.1]} 48... Kxh2
{[%clk 0:00:20.2]} 49. fxe5 {[%clk 0:00:03.7]} 49... Kg3 {[%clk 0:00:20.2]} 50.
e6 {[%clk 0:00:03.5]} 50... fxe6 {[%clk 0:00:20.5]} 51. g6 {[%clk 0:00:03.9]}
51... Be8 {[%clk 0:00:21]} 52. g7 {[%clk 0:00:03.7]} 52... Bf7 {[%clk
0:00:21.7]} 53. Bd4 {[%clk 0:00:03.7]} 53... h2 {[%clk 0:00:21.4]} 54. Be5+
{[%clk 0:00:03.8]} 54... Kg2 {[%clk 0:00:21.9]} 55. Bxh2 {[%clk 0:00:03.8]}
55... Kxh2 {[%clk 0:00:22.8]} 56. Kd4 {[%clk 0:00:03.9]} 56... Kg3 {[%clk
0:00:21.1]} 57. Ke5 {[%clk 0:00:04.8]} 57... Kg4 {[%clk 0:00:21]} 58. Kf6 {[%clk
0:00:05]} 58... Bg8 {[%clk 0:00:21.2]} 59. Ke7 {[%clk 0:00:04.9]} 59... Kf5
{[%clk 0:00:21.3]} 60. Kf8 {[%clk 0:00:05.8]} 60... Bh7 {[%clk 0:00:21.6]} 0-1

[Event "Early-Titled-Tuesday-Blitz-March-19-2024"]
[Site "Chess.com"]
[Date "2024.03.19"]
[Round "1"]
[White "Grossboss19"]
[Black "Polish_fighter3000"]
[Result "0-1"]
[WhiteElo "2575"]
[BlackElo "3157"]
[TimeControl "180+1"]
[EndTime "8:07:59 PDT"]
[Termination "Polish_fighter3000 won by resignation"]

1. d4 {[%clk 0:03:00.9]} 1... Nf6 {[%clk 0:02:57.5]} 2. c4 {[%clk 0:03:00.3]}
2... e6 {[%clk 0:02:58.1]} 3. Nc3 {[%clk 0:02:59.6]} 3... Bb4 {[%clk 0:02:55.3]}
4. e3 {[%clk 0:02:58.7]} 4... b6 {[%clk 0:02:54.5]} 5. Nf3 {[%clk 0:02:57.1]}
5... Bb7 {[%clk 0:02:53.3]} 6. Bd3 {[%clk 0:02:57.4]} 6... Bxc3+ {[%clk
0:02:50.2]} 7. bxc3 {[%clk 0:02:57.4]} 7... O-O {[%clk 0:02:50.9]} 8. O-O {[%clk
0:02:57.1]} 8... d6 {[%clk 0:02:48.9]} 9. Nd2 {[%clk 0:02:56.4]} 9... Nc6 {[%clk
0:02:42.2]} 10. e4 {[%clk 0:02:55.9]} 10... e5 {[%clk 0:02:41.9]} 11. Bb2 {[%clk
0:02:53.6]} 11... Re8 {[%clk 0:02:39.9]} 12. f3 {[%clk 0:02:53.6]} 12... h6
{[%clk 0:02:37.1]} 13. Rf2 {[%clk 0:02:53.3]} 13... Qd7 {[%clk 0:02:28]} 14. Nf1
{[%clk 0:02:52.7]} 14... Na5 {[%clk 0:02:24.7]} 15. Ne3 {[%clk 0:02:50.1]} 15...
Ba6 {[%clk 0:02:25.2]} 16. Ba3 {[%clk 0:02:44.8]} 16... c5 {[%clk 0:02:14.5]}
17. Rc1 {[%clk 0:02:39.8]} 17... Rac8 {[%clk 0:02:13.3]} 18. d5 {[%clk
0:02:29.7]} 18... g6 {[%clk 0:01:56]} 19. Rb1 {[%clk 0:02:24.6]} 19... h5 {[%clk
0:01:54.9]} 20. Bc1 {[%clk 0:02:23.2]} 20... Nh7 {[%clk 0:01:53.9]} 21. h4
{[%clk 0:02:15.5]} 21... f6 {[%clk 0:01:52.4]} 22. g3 {[%clk 0:01:29.3]} 22...
Re7 {[%clk 0:01:40.2]} 23. Kh2 {[%clk 0:01:29.2]} 23... Kf7 {[%clk 0:01:36.4]}
24. f4 {[%clk 0:01:26.4]} 24... exf4 {[%clk 0:01:19.7]} 25. gxf4 {[%clk
0:01:22.7]} 25... Rh8 {[%clk 0:00:50.5]} 26. Rbb2 {[%clk 0:01:18.5]} 26... Ke8
{[%clk 0:00:49.1]} 27. Rg2 {[%clk 0:01:18]} 27... Nf8 {[%clk 0:00:48.9]} 28.
Rbf2 {[%clk 0:01:16.6]} 28... Kd8 {[%clk 0:00:44.7]} 29. Rg3 {[%clk 0:01:14.9]}
29... Kc7 {[%clk 0:00:44.2]} 30. f5 {[%clk 0:00:58.4]} 30... Qe8 {[%clk
0:00:37.9]} 31. fxg6 {[%clk 0:00:54.4]} 31... Nxg6 {[%clk 0:00:38.8]} 32. Nf5
{[%clk 0:00:54.8]} 32... Rd7 {[%clk 0:00:35.8]} 33. Rfg2 {[%clk 0:00:49.9]}
33... Ne5 {[%clk 0:00:35.2]} 34. Rg7 {[%clk 0:00:49.3]} 34... Ng4+ {[%clk
0:00:32.5]} 35. R2xg4 {[%clk 0:00:41.6]} 35... hxg4 {[%clk 0:00:32.2]} 36. Qxg4
{[%clk 0:00:42.5]} 36... Bxc4 {[%clk 0:00:31.1]} 37. Bc2 {[%clk 0:00:39.5]}
37... b5 {[%clk 0:00:16.4]} 38. Bf4 {[%clk 0:00:39.1]} 38... Nb7 {[%clk
0:00:16.4]} 39. Qg3 {[%clk 0:00:35.5]} 39... Kb6 {[%clk 0:00:09.7]} 40. a4
{[%clk 0:00:31.1]} 40... Rxg7 {[%clk 0:00:06.5]} 41. Nxg7 {[%clk 0:00:27.9]}
41... Qd7 {[%clk 0:00:06.1]} 42. Nf5 {[%clk 0:00:25]} 42... bxa4 {[%clk
0:00:06.5]} 43. Nxd6 {[%clk 0:00:22.9]} 43... Nxd6 {[%clk 0:00:05.9]} 44. Bxd6
{[%clk 0:00:23.8]} 44... a3 {[%clk 0:00:06.2]} 45. Bf4 {[%clk 0:00:15.5]} 45...
a2 {[%clk 0:00:05.9]} 46. Qe1 {[%clk 0:00:16.1]} 46... Rxh4+ {[%clk 0:00:05.8]}
47. Qxh4 {[%clk 0:00:15]} 47... a1=Q {[%clk 0:00:05.9]} 48. Qxf6+ {[%clk
0:00:15.9]} 48... Kb5 {[%clk 0:00:06.3]} 49. Qf8 {[%clk 0:00:12.9]} 49... Qh7+
{[%clk 0:00:06]} 50. Kg2 {[%clk 0:00:12.5]} 50... Qf1+ {[%clk 0:00:06.4]} 51.
Kg3 {[%clk 0:00:12.4]} 51... Qg6+ {[%clk 0:00:06.1]} 52. Kh4 {[%clk 0:00:12.1]}
52... Qh1+ {[%clk 0:00:05.7]} 0-1

[Event "Early-Titled-Tuesday-Blitz-March-19-2024"]
[Site "Chess.com"]
[Date "2024.03.19"]
[Round "1"]
[White "MarcoRiehle"]
[Black "ikhasu"]
[Result "1-0"]
[WhiteElo "2808"]
[BlackElo "2444"]
[TimeControl "180+1"]
[EndTime "8:07:59 PDT"]
[Termination "MarcoRiehle won on time"]

1. e4 {[%clk 0:03:00.9]} 1... c5 {[%clk 0:02:58.9]} 2. a3 {[%clk 0:03:01]} 2...
Nc6 {[%clk 0:02:57.6]} 3. b4 {[%clk 0:03:00.8]} 3... e5 {[%clk 0:02:55.9]} 4. b5
{[%clk 0:03:00.3]} 4... Nd4 {[%clk 0:02:55.5]} 5. c3 {[%clk 0:03:00.7]} 5... Ne6
{[%clk 0:02:55.7]} 6. Nf3 {[%clk 0:03:01.3]} 6... d6 {[%clk 0:02:55]} 7. d4
{[%clk 0:03:01.3]} 7... cxd4 {[%clk 0:02:54.6]} 8. cxd4 {[%clk 0:03:02.2]} 8...
exd4 {[%clk 0:02:53.5]} 9. Nxd4 {[%clk 0:03:02.1]} 9... Nf6 {[%clk 0:02:52.5]}
10. Nc3 {[%clk 0:03:01.5]} 10... Be7 {[%clk 0:02:52.1]} 11. Be2 {[%clk
0:02:56.9]} 11... Qa5 {[%clk 0:02:51.2]} 12. Bb2 {[%clk 0:02:45.4]} 12... Nxe4
{[%clk 0:02:50.2]} 13. Rc1 {[%clk 0:02:45.9]} 13... O-O {[%clk 0:02:44.7]} 14.
O-O {[%clk 0:02:44.3]} 14... Nf6 {[%clk 0:02:44.4]} 15. Nf5 {[%clk 0:02:43.1]}
15... Re8 {[%clk 0:02:38.4]} 16. Nxe7+ {[%clk 0:02:32.6]} 16... Rxe7 {[%clk
0:02:37.8]} 17. Qxd6 {[%clk 0:02:33.3]} 17... Re8 {[%clk 0:02:32.3]} 18. Bc4
{[%clk 0:02:26]} 18... Bd7 {[%clk 0:02:21.2]} 19. Nd5 {[%clk 0:02:00.7]} 19...
Nxd5 {[%clk 0:02:19.8]} 20. Qxd5 {[%clk 0:01:55.9]} 20... Rad8 {[%clk
0:02:13.5]} 21. Qxb7 {[%clk 0:01:50.2]} 21... Bc8 {[%clk 0:02:04.4]} 22. Qf3
{[%clk 0:01:44.9]} 22... Qd2 {[%clk 0:01:58.2]} 23. Bc3 {[%clk 0:01:39.5]} 23...
Qg5 {[%clk 0:01:58.2]} 24. h3 {[%clk 0:01:35.6]} 24... Nf4 {[%clk 0:01:57]} 25.
Kh2 {[%clk 0:01:31]} 25... Bf5 {[%clk 0:01:40.3]} 26. Qg3 {[%clk 0:01:20.4]}
26... Qh6 {[%clk 0:01:37.9]} 27. Bxg7 {[%clk 0:01:13.8]} 27... Qxg7 {[%clk
0:01:35.7]} 28. Qxf4 {[%clk 0:01:14.2]} 28... Be4 {[%clk 0:01:33.1]} 29. Qg3
{[%clk 0:01:12.3]} 29... Bg6 {[%clk 0:01:25]} 30. Rfe1 {[%clk 0:01:04.2]} 30...
Qb2 {[%clk 0:01:21.8]} 31. Qf3 {[%clk 0:00:59.5]} 31... Qd4 {[%clk 0:01:05]} 32.
Re3 {[%clk 0:00:52.1]} 32... Rc8 {[%clk 0:00:54.8]} 33. Rxe8+ {[%clk 0:00:51.4]}
33... Rxe8 {[%clk 0:00:54.5]} 34. Rc3 {[%clk 0:00:42.2]} 34... Kg7 {[%clk
0:00:47.5]} 35. Rc1 {[%clk 0:00:34.8]} 35... Kg8 {[%clk 0:00:39.3]} 36. a4
{[%clk 0:00:33.6]} 36... Qe5+ {[%clk 0:00:34]} 37. Qg3 {[%clk 0:00:33.1]} 37...
Qb2 {[%clk 0:00:34.1]} 38. Rd1 {[%clk 0:00:29.8]} 38... Qc2 {[%clk 0:00:30.4]}
39. Bb3 {[%clk 0:00:30.1]} 39... Qc5 {[%clk 0:00:27.9]} 40. Rd7 {[%clk
0:00:28.8]} 40... Kf8 {[%clk 0:00:15.3]} 41. Qf4 {[%clk 0:00:27.4]} 41... Qh5
{[%clk 0:00:09.1]} 42. g4 {[%clk 0:00:25]} 42... Qe5 {[%clk 0:00:07.1]} 43. Qxe5
{[%clk 0:00:25.2]} 43... Rxe5 {[%clk 0:00:07.2]} 44. Rxa7 {[%clk 0:00:26.1]}
44... Re2 {[%clk 0:00:07.2]} 45. Kg3 {[%clk 0:00:25.5]} 45... Rb2 {[%clk
0:00:06.7]} 46. Bd5 {[%clk 0:00:23.9]} 46... Rd2 {[%clk 0:00:06.4]} 47. Bc6
{[%clk 0:00:23]} 47... Rd3+ {[%clk 0:00:06.7]} 48. Kg2 {[%clk 0:00:23.4]} 48...
h5 {[%clk 0:00:02.9]} 49. a5 {[%clk 0:00:23.2]} 49... hxg4 {[%clk 0:00:02.6]}
50. hxg4 {[%clk 0:00:24.1]} 50... Rd4 {[%clk 0:00:03.2]} 51. f3 {[%clk
0:00:23.5]} 51... Ra4 {[%clk 0:00:03.1]} 52. a6 {[%clk 0:00:23.3]} 52... Ra2+
{[%clk 0:00:03.3]} 53. Kg3 {[%clk 0:00:23.8]} 53... Kg7 {[%clk 0:00:03.5]} 54.
Rc7 {[%clk 0:00:24]} 54... Kh6 {[%clk 0:00:04]} 55. a7 {[%clk 0:00:23.8]} 55...
f5 {[%clk 0:00:04.5]} 56. a8=Q {[%clk 0:00:22.6]} 56... Rxa8 {[%clk 0:00:03]}
57. Bxa8 {[%clk 0:00:22.8]} 57... f4+ {[%clk 0:00:02.6]} 58. Kxf4 {[%clk
0:00:22.6]} 58... Bf5 {[%clk 0:00:03]} 59. gxf5 {[%clk 0:00:21.7]} 1-0

[Event "Early-Titled-Tuesday-Blitz-March-19-2024"]
[Site "Chess.com"]
[Date "2024.03.19"]
[Round "1"]
[White "IraZyne"]
[Black "angelgab3"]
[Result "0-1"]
[WhiteElo "2332"]
[BlackElo "2676"]
[TimeControl "180+1"]
[EndTime "8:07:59 PDT"]
[Termination "angelgab3 won on time"]

1. e4 {[%clk 0:03:00.4]} 1... e5 {[%clk 0:02:59.7]} 2. Bc4 {[%clk 0:02:59.1]}
2... Nc6 {[%clk 0:02:58.5]} 3. Nf3 {[%clk 0:02:58.2]} 3... Nf6 {[%clk
0:02:58.3]} 4. d3 {[%clk 0:02:57.6]} 4... Bc5 {[%clk 0:02:57.7]} 5. O-O {[%clk
0:02:57.1]} 5... d6 {[%clk 0:02:57.4]} 6. c3 {[%clk 0:02:56.4]} 6... a5 {[%clk
0:02:58]} 7. Nbd2 {[%clk 0:02:48.6]} 7... O-O {[%clk 0:02:55.8]} 8. a4 {[%clk
0:02:47.3]} 8... Ba7 {[%clk 0:02:56]} 9. h3 {[%clk 0:02:43.3]} 9... Ne7 {[%clk
0:02:56.3]} 10. Re1 {[%clk 0:02:41.4]} 10... Ng6 {[%clk 0:02:57.2]} 11. Nf1
{[%clk 0:02:40.7]} 11... c6 {[%clk 0:02:57.3]} 12. Bb3 {[%clk 0:02:38.6]} 12...
d5 {[%clk 0:02:49.2]} 13. exd5 {[%clk 0:02:35.5]} 13... Nxd5 {[%clk 0:02:50.1]}
14. Ng3 {[%clk 0:02:28.2]} 14... Qc7 {[%clk 0:02:29.7]} 15. Bd2 {[%clk
0:02:11.6]} 15... Rd8 {[%clk 0:02:26.9]} 16. Qc2 {[%clk 0:02:10.9]} 16... h6
{[%clk 0:01:51.4]} 17. Re4 {[%clk 0:02:05.8]} 17... f5 {[%clk 0:01:45]} 18. Ree1
{[%clk 0:02:04.5]} 18... e4 {[%clk 0:01:41.4]} 19. dxe4 {[%clk 0:01:51.5]} 19...
Qxg3 {[%clk 0:01:27.9]} 20. exd5 {[%clk 0:01:51.4]} 20... Bxf2+ {[%clk
0:01:22.9]} 21. Kh1 {[%clk 0:01:50.9]} 21... Bxe1 {[%clk 0:01:21.7]} 22. dxc6+
{[%clk 0:01:44.8]} 22... Kh7 {[%clk 0:01:18.9]} 23. Rxe1 {[%clk 0:01:42.1]}
23... bxc6 {[%clk 0:01:14.6]} 24. Ng1 {[%clk 0:01:26.4]} 24... Nh4 {[%clk
0:01:01.1]} 25. Re2 {[%clk 0:01:16.7]} 25... Ba6 {[%clk 0:00:26.9]} 26. Be1
{[%clk 0:01:13.7]} 26... Qg5 {[%clk 0:00:27.3]} 27. Re5 {[%clk 0:01:09.1]} 27...
Ng6 {[%clk 0:00:22.7]} 28. Rxf5 {[%clk 0:01:07.1]} 28... Bd3 {[%clk 0:00:21.7]}
29. Rxg5 {[%clk 0:01:01.3]} 29... Bxc2 {[%clk 0:00:21.6]} 30. Bxc2 {[%clk
0:00:59.8]} 30... hxg5 {[%clk 0:00:22.5]} 31. Nf3 {[%clk 0:00:59.7]} 31... Kh6
{[%clk 0:00:20.6]} 32. Bd2 {[%clk 0:00:58.4]} 32... Nf4 {[%clk 0:00:21.2]} 33.
Kh2 {[%clk 0:00:55.6]} 33... Rab8 {[%clk 0:00:21.3]} 34. b3 {[%clk 0:00:53.8]}
34... Rxd2 {[%clk 0:00:18.3]} 35. Nxd2 {[%clk 0:00:52.8]} 35... Re8 {[%clk
0:00:19.2]} 36. Nf3 {[%clk 0:00:48.2]} 36... Re2 {[%clk 0:00:17.2]} 37. Bf5
{[%clk 0:00:47.4]} 37... Rxg2+ {[%clk 0:00:17.2]} 38. Kh1 {[%clk 0:00:47.5]}
38... Rb2 {[%clk 0:00:17.9]} 39. Nd4 {[%clk 0:00:44.9]} 39... Nh5 {[%clk
0:00:17.4]} 40. Be6 {[%clk 0:00:41.9]} 40... Ng3+ {[%clk 0:00:17.8]} 41. Kg1
{[%clk 0:00:42.1]} 41... c5 {[%clk 0:00:17.3]} 42. Nc6 {[%clk 0:00:38.3]} 42...
g4 {[%clk 0:00:16.6]} 43. hxg4 {[%clk 0:00:34.3]} 43... Kg5 {[%clk 0:00:16.7]}
44. Nxa5 {[%clk 0:00:31.9]} 44... Kh4 {[%clk 0:00:15.9]} 45. Nc4 {[%clk
0:00:27.5]} 45... Re2 {[%clk 0:00:16.6]} 46. Bd7 {[%clk 0:00:20.5]} 46... g5
{[%clk 0:00:16.4]} 47. Bc6 {[%clk 0:00:08]} 47... Kh3 {[%clk 0:00:15.7]} 48. a5
{[%clk 0:00:04.4]} 48... Kxg4 {[%clk 0:00:11.4]} 49. a6 {[%clk 0:00:04.2]} 49...
Ra2 {[%clk 0:00:12.1]} 50. Bb7 {[%clk 0:00:03.3]} 50... Ne2+ {[%clk 0:00:12.1]}
51. Kf1 {[%clk 0:00:02.4]} 51... Nxc3 {[%clk 0:00:13]} 52. Ke1 {[%clk
0:00:01.3]} 52... Kf4 {[%clk 0:00:13.2]} 0-1

[Event "Early-Titled-Tuesday-Blitz-March-19-2024"]
[Site "Chess.com"]
[Date "2024.03.19"]
[Round "1"]
[White "FMVolodymyrSakun"]
[Black "newauto"]
[Result "1-0"]
[WhiteElo "2601"]
[BlackElo "2131"]
[TimeControl "180+1"]
[EndTime "8:07:59 PDT"]
[Termination "FMVolodymyrSakun won by resignation"]

1. Nf3 {[%clk 0:02:59.4]} 1... d5 {[%clk 0:03:00]} 2. d4 {[%clk 0:02:58.5]} 2...
c6 {[%clk 0:02:59.4]} 3. c4 {[%clk 0:02:55.2]} 3... Nf6 {[%clk 0:03:00]} 4. e3
{[%clk 0:02:54.8]} 4... Bf5 {[%clk 0:02:58.6]} 5. Nc3 {[%clk 0:02:53]} 5... e6
{[%clk 0:02:58.6]} 6. Nh4 {[%clk 0:02:52.2]} 6... Bg4 {[%clk 0:02:57.3]} 7. Qb3
{[%clk 0:02:51.8]} 7... Qb6 {[%clk 0:02:56.7]} 8. c5 {[%clk 0:02:51.5]} 8...
Qxb3 {[%clk 0:02:56.5]} 9. axb3 {[%clk 0:02:52.4]} 9... Be7 {[%clk 0:02:50.5]}
10. h3 {[%clk 0:02:50.7]} 10... Bh5 {[%clk 0:02:49.1]} 11. g4 {[%clk 0:02:49.9]}
11... Bg6 {[%clk 0:02:49.1]} 12. Nxg6 {[%clk 0:02:50.3]} 12... hxg6 {[%clk
0:02:50]} 13. Bg2 {[%clk 0:02:50.7]} 13... Na6 {[%clk 0:02:41.7]} 14. Ke2 {[%clk
0:02:45.3]} 14... Kd7 {[%clk 0:02:37.8]} 15. Bd2 {[%clk 0:02:40.8]} 15... Nc7
{[%clk 0:02:30]} 16. b4 {[%clk 0:02:35.7]} 16... a6 {[%clk 0:02:29.6]} 17. Na4
{[%clk 0:02:35.4]} 17... Rae8 {[%clk 0:02:08.4]} 18. Nb6+ {[%clk 0:02:34.8]}
18... Kd8 {[%clk 0:02:08.3]} 19. f3 {[%clk 0:02:32.6]} 19... Nb5 {[%clk
0:02:03.4]} 20. Kd3 {[%clk 0:02:31.7]} 20... Nd7 {[%clk 0:02:01.8]} 21. Nxd7
{[%clk 0:02:02.9]} 21... Kxd7 {[%clk 0:02:01.3]} 22. e4 {[%clk 0:02:03.8]} 22...
dxe4+ {[%clk 0:01:43.3]} 23. fxe4 {[%clk 0:02:03.8]} 23... Bf6 {[%clk
0:01:43.5]} 24. Be3 {[%clk 0:01:57.5]} 24... Kc8 {[%clk 0:01:37.7]} 25. Kc4
{[%clk 0:01:52.6]} 25... Rd8 {[%clk 0:01:35.5]} 26. Rad1 {[%clk 0:01:52.2]}
26... Rd7 {[%clk 0:01:30.4]} 27. g5 {[%clk 0:01:43.5]} 27... Bxd4 {[%clk
0:01:16.2]} 28. Rxd4 {[%clk 0:01:42.6]} 28... Nxd4 {[%clk 0:01:13.6]} 29. Bxd4
{[%clk 0:01:43.4]} 29... Rhd8 {[%clk 0:01:11.5]} 30. Bxg7 {[%clk 0:01:28]} 30...
Rd2 {[%clk 0:01:11]} 31. Bf3 {[%clk 0:01:27.7]} 31... R8d3 {[%clk 0:01:04.7]}
32. Bg4 {[%clk 0:01:25.2]} 32... Re3 {[%clk 0:01:00]} 33. Rf1 {[%clk 0:01:08]}
33... Rxe4+ {[%clk 0:00:58.9]} 34. Kc3 {[%clk 0:01:07.1]} 34... Rd7 {[%clk
0:00:55.1]} 35. Bf8 {[%clk 0:01:05.6]} 35... Re3+ {[%clk 0:00:46.1]} 36. Kc2
{[%clk 0:01:05.2]} 36... Kd8 {[%clk 0:00:40.1]} 37. Bd6 {[%clk 0:01:03.8]} 37...
Ke8 {[%clk 0:00:38.8]} 38. Rf4 {[%clk 0:00:58]} 38... Rg3 {[%clk 0:00:33.3]} 39.
Rf2 {[%clk 0:00:49.5]} 39... b6 {[%clk 0:00:30.4]} 40. Bf3 {[%clk 0:00:47.1]}
40... Rxd6 {[%clk 0:00:29.2]} 41. cxd6 {[%clk 0:00:46.3]} 41... Kd7 {[%clk
0:00:30.1]} 42. Bg4 {[%clk 0:00:46.1]} 42... Kxd6 {[%clk 0:00:30.4]} 43. Rxf7
{[%clk 0:00:46.1]} 43... Rg2+ {[%clk 0:00:26.2]} 44. Kb1 {[%clk 0:00:44.2]}
44... c5 {[%clk 0:00:22.7]} 45. bxc5+ {[%clk 0:00:42.9]} 45... Kxc5 {[%clk
0:00:22.2]} 46. Bxe6 {[%clk 0:00:42.1]} 46... Rxg5 {[%clk 0:00:22]} 47. Bg4
{[%clk 0:00:41.2]} 47... a5 {[%clk 0:00:20.6]} 48. Rc7+ {[%clk 0:00:37.8]} 48...
Kb4 {[%clk 0:00:19.8]} 49. Rc3 {[%clk 0:00:34.6]} 49... b5 {[%clk 0:00:19]} 50.
Rf3 {[%clk 0:00:34.4]} 50... a4 {[%clk 0:00:17.5]} 51. Rf4+ {[%clk 0:00:34.4]}
51... Ka5 {[%clk 0:00:17]} 52. Kc2 {[%clk 0:00:34]} 52... b4 {[%clk 0:00:17.2]}
53. Kd3 {[%clk 0:00:32.8]} 53... Rc5 {[%clk 0:00:16.8]} 54. Rc4 {[%clk
0:00:32.1]} 54... Rd5+ {[%clk 0:00:16.8]} 55. Rd4 {[%clk 0:00:32.4]} 55... Rc5
{[%clk 0:00:17]} 56. Be6 {[%clk 0:00:32.3]} 56... Kb5 {[%clk 0:00:16.4]} 57. Rd5
{[%clk 0:00:32.5]} 57... Rxd5+ {[%clk 0:00:15.6]} 58. Bxd5 {[%clk 0:00:32.4]}
58... Kc5 {[%clk 0:00:15.7]} 59. Bf7 {[%clk 0:00:32.6]} 59... g5 {[%clk
0:00:14.5]} 60. Ke3 {[%clk 0:00:31.9]} 60... b3 {[%clk 0:00:13.5]} 61. Kf3
{[%clk 0:00:27.9]} 61... a3 {[%clk 0:00:13]} 62. bxa3 {[%clk 0:00:27.9]} 62...
b2 {[%clk 0:00:13.3]} 63. Ba2 {[%clk 0:00:26.7]} 63... Kd4 {[%clk 0:00:13.2]}
64. Kg4 {[%clk 0:00:26.5]} 1-0